Workbook

Sheet MATRIZ DE INDICADORES
D2: MACROPROCESO ESTRATÉGICO | S2: CÓDIGO: ESGr027
D3: PROCESO GESTIÓN SISTEMAS INTEGRADOS - CALIDAD | S3: VERSIÓN: 8
D4: MATRIZ DE MEDICIÓN Y SEGUIMIENTO A LOS PROCESOS DE GESTIÓN | S4: VIGENCIA: 2023-07-28
S5: PÁGINA: 1 de 4
Q7: FECHA DE ACTUALIZACIÓN: | S7: AÑO | T7: MES | U7: DÍA
S8: 2024 | T8: 2 | U8: 15
B10: ALINEACIÓN DE LOS INDICADORES CON LOS DOCUMENTOS ESTRATÉGICOS Y LOS OBJETIVOS DE CALIDAD
B12: PROCESO GESTIÓN | C12: FRENTES DEL PLAN ESTRATÉGICO | D12: LINEAMIENTOS DE LA POLÍTICA DE CALIDAD | E12: OBJETIVOS DE CALIDAD | F12: OBJETIVO GENERAL DEL PROCESO | G12: OBJETIVOS ESPECÍFICOS | H12: NOMBRE INDICADOR | I12: FÓRMULA | J12: TIPO DE INDICADOR | K12: SEGUIMIENTO MEDICIÓN | L12: META | M12: ACTIVIDAD | N12: RESPONSABLE DE LA ACTIVIDAD | O12: ¿QUÉ RECURSOS SE REQUIEREN? | P12: FECHA EJECUCIÓN DE ACTIVIDADES | Q12: EVIDENCIA | R12: ¿CUÁNDO FINALIZARÁ? | S12: RESULTADO | T12: NIVEL OBTENIDO | U12: ACCESO
B13: Documental | C13: Frente Estratégico VI: Organización universitaria inteligente con alma y corazón | D13: Consolidación de una organización universitaria inteligente con alma y corazón | E13: 5. Mejorar continuamente el desempeño de los procesos a través de la implementación de buenas prácticas institucionales y de la aplicación de los mecanismos dispuestos por la Universidad de Cundinamarca, para la constitución de una organización universitaria inteligente con alma y corazón. | F13: Contribuir a un Gobierno Digital Universitario mediante la administración de los documentos de la Universidad de Cundinamarca, desde su inicio hasta su disposición final, a través de las tablas de retención, valoración documental e inventarios documentales, ejecutando acciones para mantener actualizados los archivos de gestión, central e histórico. | G13: Digitalizar el 60% de los metros lineales identificados en los inventarios documentales durante el 2024. | H13: Cumplimiento en la digitalización de documentos | I13: # de metros lineales digitalizados*100 / Total de metros lineales | J13: Eficacia | K13: SEMESTRAL | L13: 0.6 | M13: Realizar un diagnóstico de los documentos requeridos para realizar transferencia | N13: Proceso de Gestión Documental Directores o Jefes de los Procesos | O13: Recurso Humano Office 365 | P13: 2024-02-01 | Q13: Informe (actas)de los documentos requeridos para transferencia | R13: 2024 | S13: ='ADO-2'!D49 -> 0.725 | U13: ADO-2
M14: Alistar los documentos requeridos para transferencia de acuerdo a la Circular 004 Febrero de 2023 | N14: Proceso de Gestión Documental | O14: Recurso Humano Office 365 | P14: Vigencia 2024 | Q14: *Correo confirmando la visita para realizar la transferencia *Cronograma de transferencias documentales
M15: Verificar si los documentos cumplen los parámetros de transferencia | N15: Proceso de Gestión Documental | O15: Recurso Humano Office 365 Personal a cargo en cada Proceso | P15: Permanente | Q15: ADOr021 (Inventario Único Documental) presentado por cada proceso
M16: Priorizar la digitalización de los documentos (según TRD) de acuerdo a la necesidad y/o requerimiento del solicitante | N16: Proceso de Gestión Documental | O16: Recurso Humano Office 365 | P16: Permanente | Q16: Cronograma de transferencias documentales
M17: Digitalización de los documentos | N17: Proceso de Gestión Documental | O17: Recurso Humano Office 365 Equipos de Escaneo | P17: Permanente | Q17: Informe con la digitalización realizada
M18: Verificar el cumplimiento de los documentos digitalizados de acuerdo a los informes realizados | N18: Proceso de Gestión Documental | O18: Recurso Humano Office 365 | P18: Permanente | Q18: Informe de lo que se encuentra digitalizado, en el SharePoint
M19: Implementar acciones según los resultados | N19: Proceso de Gestión Documental | O19: Recurso Humano Office 365 | P19: Según la necesidad | Q19: Ficha técnica de indicador - Acción formulada
G20: Brindar una atención oportuna del 95% de las solicitudes atendidas en el tiempo establecido en el Manual de Gestión Documental ADOM001 de los requerimientos de archivo durante la vigencia 2024. | H20: Eficacia en la atención a requerimientos de archivo | I20: # de solicitudes atendidas oportunamente en el tiempo establecido/ # de solicitudes recibidas *100 | J20: Eficacia | K20: TRIMESTRAL | L20: 0.95 | M20: Clasificar la información solicitada | N20: Proceso de Gestión Documental | O20: Recurso Humano Software documental (SAIA) Office 365 | P20: Según la necesidad | Q20: Identificación de la solicitud por medio del Software documental (SAIA) | S20: ='ADO-3'!D49 -> 0.9698924731 | U20: ADO-3
M21: Dar respuesta a la solicitud | N21: Proceso de Gestión Documental | O21: Recurso Humano Software documental (SAIA) Office 365 | P21: Según la necesidad | Q21: Respuesta a la solicitud por software documental (SAIA) y/o correo institucional
M22: Diligenciar la data de las solicitudes atendidas | N22: Proceso de Gestión Documental | O22: Recurso Humano Office 365 | P22: Según la necesidad | Q22: Archivo compartido de Promedio de solicitudes
M23: Verificar el estado de las solicitudes pendientes | N23: Proceso de Gestión Documental | O23: Recurso Humano Office 365 Software documental (SAIA) | P23: Según la necesidad | Q23: Seguimiento por software documental (SAIA) y/o correo institucional
M24: Implementar acciones según los resultados | N24: Proceso de Gestión Documental | O24: Recurso Humano Office 365 | P24: Según la necesidad | Q24: Ficha técnica de indicador - Acción formulada
B29: Diagonal 18 No. 20-29 Fusagasugá – Cundinamarca Teléfono (601) 8281483 Línea Gratuita 018000180414 www.ucundinamarca.edu.co E-mail: info@ucundinamarca.edu.co NIT: 890.680.062-2
B30: Documento controlado por el Sistema de Gestión de la Calidad Asegúrese que corresponde a la última versión consultando el Portal Institucional

Sheet ADO-2
B2: REGRESAR
E5: MACROPROCESO ESTRATÉGICO | M5: CÓDIGO: ESGr027
E6: PROCESO GESTIÓN SISTEMAS INTEGRADOS | M6: VERSIÓN: 8
E7: MATRIZ DE MEDICIÓN Y SEGUIMIENTO A LOS PROCESOS DE GESTIÓN | M7: VIGENCIA: 2023-07-28
M8: PÁGINA: 2 de 4
C10: FICHA DE INDICADOR
C12: MACROPROCESO | E12: Apoyo | I12: NOMBRE DEL INDICADOR | K12: Cumplimiento en la digitalización de documentos
C13: PROCESO GESTIÓN | E13: Documental
C14: RESPONSABLE DE MEDICIÓN | E14: Jefe de la Oficina de Archivo y Correspondencia
C16: 1. COMPORTAMIENTO DE INDICADOR
C17: CLASIFICACIÓN DE LA MEDICIÓN | E17: 1 | H17: TIPO DE INDICADOR | J17: Eficacia | L17: META ANUAL | N17: 0.6
C18: FORMULA | E18: NUMERADOR | G18: # de metros lineales digitalizados*100 | L18: UNIDAD DE MEDIDA | N18: Porcentual
E19: DENOMINADOR | G19: Total de metros lineales
C20: TENDENCIA | E20: Positiva | H20: NIVEL DE SEGREGACIÓN * | J20: No Aplica | L20: ESCALA
L21: Deficiente | M21: Aceptable | N21: Bueno | O21: Excelente
L22: 0% - 44.9% | M22: 45% - 31.9% | N22: 52% - 60% | O22: >60%
C23: ORIGEN DE DATOS NUMERADOR | E23: Evidencias Informe de documentos digitalizados. | H23: FRECUENCIA DE LA MEDICIÓN | J23: SEMESTRAL | L23: FRECUENCIA DE RESULTADO | N23: SEMESTRAL
C24: ORIGEN DE DATOS DENOMINADOR | E24: Evidencias Informe de documentos digitalizados.
C26: RESULTADOS
J27: ANÁLISIS DE DATOS
J28: En el I SEMESTRE, se realizó la digitalización de 21,75 metros lineales, del acervo documental que ha sido transferido al archivo central de la sede de Fusagasugá, esta información corresponde entre vigencias del 1972 al 2019, se tenía proyectado digitalizar 30 metros lineales que equivale a 120 cajas X200. Quedo faltado 8,25 metros lineales que equivale a 30 cajas X200 Para el II SEMESTRE, se logró cumplir la meta propuesta del 100%. La oficina de Archivo y Correspondencia planifico para el semestre en mención digitalizar 34 metros lineales, lo cual se cumplió.
J34: ACCIÓN FORMULADA
J35: Para continuar con el proceso de digitalización, se esta realizando el alistamiento el cual consiste en: * levantamiento del invetario documental *Eliminar material metálico. *Verificar la exactitud de la foliación del expediente
J41: RESPONSABLE
J42: =E14 -> Jefe de la Oficina de Archivo y Correspondencia
C45: PERIODO DE EVALUACIÓN
C46: MES | D46: =IF(J23="MENSUAL","ENERO",IF(J23="TRIMESTRAL","MARZO",IF(J23="SEMESTRAL","JUNIO",IF(J23="ANUAL",YEAR(TODAY()),"")))) -> JUNIO | E46: =IF(J23="MENSUAL","FEBRERO",IF(J23="TRIMESTRAL","JUNIO",IF(J23="SEMESTRAL","DICIEMBRE",""))) -> DICIEMBRE | F46: =IF(J23="MENSUAL","MARZO",IF(J23="TRIMESTRAL","SEPTIEMBRE","")) ->  | G46: =IF(J23="MENSUAL","ABRIL",IF(J23="TRIMESTRAL","DICIEMBRE","")) ->  | H46: =IF(J23="MENSUAL","MAYO","") ->  | I46: =IF(J23="MENSUAL","JUNIO","") ->  | J46: =IF(J23="MENSUAL","JULIO","") ->  | K46: =IF(J23="MENSUAL","AGOSTO","") ->  | L46: =IF(J23="MENSUAL","SEPTIEMBRE","") ->  | M46: =IF(J23="MENSUAL","OCTUBRE","") ->  | N46: =IF(J23="MENSUAL","NOVIEMBRE","") ->  | O46: =IF(J23="MENSUAL","DICIEMBRE","") -> 
C47: =G18 -> # de metros lineales digitalizados*100 | D47: 21.75 | E47: 34
C48: =G19 -> Total de metros lineales | D48: 30 | E48: 34
C49: VALOR | D49: =IFERROR(IF($E$17=1,D47/D48,IF($E$17=2,D47,"")),"") -> 0.725 | E49: =IFERROR(IF($E$17=1,E47/E48,IF($E$17=2,E47,"")),"") -> 1 | H49: =IFERROR(IF($E$17=1,H47/H48,IF($E$17=2,H47,"")),"") -> 
C50: META PONDERADA | D50: =IF(AND(N23="ANUAL",J23="MENSUAL"),N17/12,IF(AND(N23="ANUAL",J23="TRIMESTRAL"),N17/4,IF(AND(N23="ANUAL",J23="SEMESTRAL"),N17/2,IF(AND(N23="ANUAL",J23="ANUAL"),N17,IF(AND(N23="SEMESTRAL",J23="MENSUAL"),N17/6,IF(AND(N23="SEMESTRAL",J23="TRIMESTRAL"),N17/2,IF(AND(N23="SEMESTRAL",J23="SEMESTRAL"),N17,IF(AND(N23="SEMESTRAL",J23="ANUAL"),"REVISAR FRECUENCIAS",IF(AND(N23="TRIMESTRAL",J23="MENSUAL"),N17/3,IF(AND(N23="TRIMESTRAL",J23="TRIMESTRAL"),N17,IF(AND(N23="TRIMESTRAL",J23="SEMESTRAL"),"REVISAR FRECUENCIAS",IF(AND(N23="TRIMESTRAL",J23="ANUAL"),"REVISAR FRECUENCIAS",IF(AND(N23="MENSUAL",J23="MENSUAL"),N17,IF(AND(N23="MENSUAL",J23="TRIMESTRAL"),"REVISAR FRECUENCIAS",IF(AND(N23="MENSUAL",J23="SEMESTRAL"),"REVISAR FRECUENCIAS",IF(AND(N23="MENSUAL",J23="ANUAL"),"REVISAR FRECUENCIAS","")))))))))))))))) -> 0.6 | E50: =IF(AND(N23="ANUAL",J23="MENSUAL"),N17/12+D50,IF(AND(N23="ANUAL",J23="TRIMESTRAL"),N17/4+D50,IF(AND(N23="ANUAL",J23="SEMESTRAL"),N17/2+D50,IF(AND(N23="SEMESTRAL",J23="MENSUAL"),N17/6+D50,IF(AND(N23="SEMESTRAL",J23="TRIMESTRAL"),N17/2+D50,IF(AND(N23="SEMESTRAL",J23="SEMESTRAL"),N17,IF(AND(N23="TRIMESTRAL",J23="MENSUAL"),N17/3+D50,IF(AND(N23="TRIMESTRAL",J23="TRIMESTRAL"),N17,IF(AND(N23="MENSUAL",J23="MENSUAL"),N17,""))))))))) -> 0.6 | F50: =IF(AND(N23="ANUAL",J23="MENSUAL"),N17/12+E50,IF(AND(N23="ANUAL",J23="TRIMESTRAL"),N17/4+E50,IF(AND(N23="SEMESTRAL",J23="MENSUAL"),N17/6+E50,IF(AND(N23="SEMESTRAL",J23="TRIMESTRAL"),N17/2,IF(AND(N23="TRIMESTRAL",J23="MENSUAL"),N17/3+E50,IF(AND(N23="TRIMESTRAL",J23="TRIMESTRAL"),N17,IF(AND(N23="MENSUAL",J23="MENSUAL"),N17,""))))))) ->  | G50: =IF(AND(N23="ANUAL",J23="MENSUAL"),N17/12+F50,IF(AND(N23="ANUAL",J23="TRIMESTRAL"),N17/4+F50,IF(AND(N23="SEMESTRAL",J23="MENSUAL"),N17/6+F50,IF(AND(N23="SEMESTRAL",J23="TRIMESTRAL"),N17/2+F50,IF(AND(N23="TRIMESTRAL",J23="MENSUAL"),N17/3,IF(AND(N23="TRIMESTRAL",J23="TRIMESTRAL"),N17,IF(AND(N23="MENSUAL",J23="MENSUAL"),N17,""))))))) ->  | H50: =IF(AND($N$23="ANUAL",$J$23="MENSUAL"),$N$17/12+G50,IF(AND(N23="SEMESTRAL",J23="MENSUAL"),N17/6+G50,IF(AND(N23="TRIMESTRAL",J23="MENSUAL"),N17/3+G50,IF(AND(N23="MENSUAL",J23="MENSUAL"),N17,"")))) ->  | I50: =IF(AND($N$23="ANUAL",$J$23="MENSUAL"),$N$17/12+H50,IF(AND(N23="SEMESTRAL",J23="MENSUAL"),N17/6+H50,IF(AND(N23="TRIMESTRAL",J23="MENSUAL"),N17/3+H50,IF(AND(N23="MENSUAL",J23="MENSUAL"),N17,"")))) ->  | J50: =IF(AND($N$23="ANUAL",$J$23="MENSUAL"),$N$17/12+I50,IF(AND(N23="SEMESTRAL",J23="MENSUAL"),N17/6,IF(AND(N23="TRIMESTRAL",J23="MENSUAL"),N17/3,IF(AND(N23="MENSUAL",J23="MENSUAL"),N17,"")))) ->  | K50: =IF(AND($N$23="ANUAL",$J$23="MENSUAL"),$N$17/12+J50,IF(AND(N23="SEMESTRAL",J23="MENSUAL"),N17/6+J50,IF(AND(N23="TRIMESTRAL",J23="MENSUAL"),N17/3+J50,IF(AND(N23="MENSUAL",J23="MENSUAL"),N17,"")))) ->  | L50: =IF(AND($N$23="ANUAL",$J$23="MENSUAL"),$N$17/12+K50,IF(AND(N23="SEMESTRAL",J23="MENSUAL"),N17/6+K50,IF(AND(N23="TRIMESTRAL",J23="MENSUAL"),N17/3+K50,IF(AND(N23="MENSUAL",J23="MENSUAL"),N17,"")))) ->  | M50: =IF(AND($N$23="ANUAL",$J$23="MENSUAL"),$N$17/12+L50,IF(AND(N23="SEMESTRAL",J23="MENSUAL"),N17/6+L50,IF(AND(N23="TRIMESTRAL",J23="MENSUAL"),N17/3,IF(AND(N23="MENSUAL",J23="MENSUAL"),N17,"")))) ->  | N50: =IF(AND($N$23="ANUAL",$J$23="MENSUAL"),$N$17/12+M50,IF(AND(N23="SEMESTRAL",J23="MENSUAL"),N17/6+M50,IF(AND(N23="TRIMESTRAL",J23="MENSUAL"),N17/3+M50,IF(AND(N23="MENSUAL",J23="MENSUAL"),N17,"")))) ->  | O50: =IF(AND($N$23="ANUAL",$J$23="MENSUAL"),$N$17/12+N50,IF(AND(N23="SEMESTRAL",J23="MENSUAL"),N17/6+N50,IF(AND(N23="TRIMESTRAL",J23="MENSUAL"),N17/3+N50,IF(AND(N23="MENSUAL",J23="MENSUAL"),N17,"")))) -> 
C52: NIVEL DE SEGREGACIÓN *
C53: UNIDAD SEGREGADA (Ej. Facultad, Programa Académico, Área) | G53: RESULTADO | K53: ANÁLISIS DE DATOS SEGREGADO
C54: Documentos transferidos en el archivo central | G54: 87 | K54: Documentos digitalizados
G72: Estratégico | J72: Eficacia
G73: Misional | J73: Eficiencia
G74: Apoyo | J74: Acreditación
G75: Seguimiento, Medición, Análisis y Evaluación | J75: Positiva
G76: Direccionamiento Estratégico | J76: Negativa
G77: Planeación Institucional | J77: Por Unidad Regional
G78: Proyectos Especiales y Relaciones Interinstitucionales | J78: Por Facultad
G79: Sistemas Integrados | J79: Por Programa Académico
G80: Autoevaluación y Acreditación | J80: Por área
G81: Comunicaciones | J81: Por Laboratorio
G82: Formación y Aprendizaje | J82: Otros
G83: Ciencia, Tecnología e Innovación | J83: No Aplica
G84: Interacción Social Universitaria
G85: Bienestar Universitario
G86: Admisiones y Registro
G87: Graduados
G88: Dialogando con el Mundo
G89: Talento Humano
G90: Jurídica
G91: Financiera
G92: Sistemas y Tecnología
G93: Bienes y Servicios
G94: Documental
G95: Apoyo Académico
G96: Control Interno
G97: Control Disciplinario
G98: Servicio de Atención al Ciudadano

Sheet Propuesta 1 (hidden)
B2: REGRESAR
E5: MACROPROCESO ESTRATÉGICO | M5: CÓDIGO: ESGr027
E6: PROCESO GESTIÓN SISTEMAS INTEGRADOS | M6: VERSIÓN: 7
E7: MATRIZ DE MEDICIÓN Y SEGUIMIENTO A LOS PROCESOS DE GESTIÓN | M7: VIGENCIA: 2020-03-20
M8: PÁGINA: 1 de 1
C10: FICHA DE INDICADOR
C12: MACROPROCESO | E12: Apoyo | I12: NOMBRE DEL INDICADOR | K12: Tabla de Retención Documental Aplicada Correctamente
C13: PROCESO GESTIÓN | E13: Documental
C14: RESPONSABLE DE MEDICIÓN | E14: Jefe de la oficina de Archivo y Correspondencia
C16: 1. COMPORTAMIENTO DE INDICADOR
C17: CLASIFICACIÓN DE LA MEDICIÓN | E17: 1 | H17: TIPO DE INDICADOR | J17: Eficacia | L17: META ANUAL | N17: 0.8
C18: FORMULA | E18: NUMERADOR | G18: # de archivos de gestión con TDR aplicada correctamente | L18: UNIDAD DE MEDIDA | N18: Porcentual
E19: DENOMINADOR | G19: # de archivos de gestión * 100
C20: TENDENCIA | E20: Positiva | H20: NIVEL DE SEGREGACIÓN * | J20: Por área | L20: ESCALA
L21: Deficiente | M21: Aceptable | N21: Bueno | O21: Excelente
L22: 0% - 24.9% | M22: 25% - 31.9% | N22: 32% - 40% | O22: >40%
C23: ORIGEN DE DATOS NUMERADOR | E23: Informe de resultados de aplicación de TDR | H23: FRECUENCIA DE LA MEDICIÓN | J23: TRIMESTRAL | L23: FRECUENCIA DE RESULTADO | N23: TRIMESTRAL
C24: ORIGEN DE DATOS DENOMINADOR | E24: Archivos de gestión recibidos
C26: RESULTADOS
J27: ANÁLISIS DE DATOS
J34: ACCIÓN FORMULADA
J41: RESPONSABLE
J42: =E14 -> Jefe de la oficina de Archivo y Correspondencia
C45: PERIODO DE EVALUACIÓN
C46: MES | D46: =IF(J23="MENSUAL","ENERO",IF(J23="TRIMESTRAL","MARZO",IF(J23="SEMESTRAL","JUNIO",IF(J23="ANUAL",YEAR(TODAY()),"")))) -> MARZO | E46: =IF(J23="MENSUAL","FEBRERO",IF(J23="TRIMESTRAL","JUNIO",IF(J23="SEMESTRAL","DICIEMBRE",""))) -> JUNIO | F46: =IF(J23="MENSUAL","MARZO",IF(J23="TRIMESTRAL","SEPTIEMBRE","")) -> SEPTIEMBRE | G46: =IF(J23="MENSUAL","ABRIL",IF(J23="TRIMESTRAL","DICIEMBRE","")) -> DICIEMBRE | H46: =IF(J23="MENSUAL","MAYO","") ->  | I46: =IF(J23="MENSUAL","JUNIO","") ->  | J46: =IF(J23="MENSUAL","JULIO","") ->  | K46: =IF(J23="MENSUAL","AGOSTO","") ->  | L46: =IF(J23="MENSUAL","SEPTIEMBRE","") ->  | M46: =IF(J23="MENSUAL","OCTUBRE","") ->  | N46: =IF(J23="MENSUAL","NOVIEMBRE","") ->  | O46: =IF(J23="MENSUAL","DICIEMBRE","") -> 
C47: =G18 -> # de archivos de gestión con TDR aplicada correctamente
C48: =G19 -> # de archivos de gestión * 100
C49: VALOR | D49: 0.3 | H49: =IFERROR(IF($E$17=1,H47/H48,IF($E$17=2,H47,"")),"") -> 
C50: META PONDERADA | D50: =IF(AND(N23="ANUAL",J23="MENSUAL"),N17/12,IF(AND(N23="ANUAL",J23="TRIMESTRAL"),N17/4,IF(AND(N23="ANUAL",J23="SEMESTRAL"),N17/2,IF(AND(N23="ANUAL",J23="ANUAL"),N17,IF(AND(N23="SEMESTRAL",J23="MENSUAL"),N17/6,IF(AND(N23="SEMESTRAL",J23="TRIMESTRAL"),N17/2,IF(AND(N23="SEMESTRAL",J23="SEMESTRAL"),N17,IF(AND(N23="SEMESTRAL",J23="ANUAL"),"REVISAR FRECUENCIAS",IF(AND(N23="TRIMESTRAL",J23="MENSUAL"),N17/3,IF(AND(N23="TRIMESTRAL",J23="TRIMESTRAL"),N17,IF(AND(N23="TRIMESTRAL",J23="SEMESTRAL"),"REVISAR FRECUENCIAS",IF(AND(N23="TRIMESTRAL",J23="ANUAL"),"REVISAR FRECUENCIAS",IF(AND(N23="MENSUAL",J23="MENSUAL"),N17,IF(AND(N23="MENSUAL",J23="TRIMESTRAL"),"REVISAR FRECUENCIAS",IF(AND(N23="MENSUAL",J23="SEMESTRAL"),"REVISAR FRECUENCIAS",IF(AND(N23="MENSUAL",J23="ANUAL"),"REVISAR FRECUENCIAS","")))))))))))))))) -> 0.8 | E50: =IF(AND(N23="ANUAL",J23="MENSUAL"),N17/12+D50,IF(AND(N23="ANUAL",J23="TRIMESTRAL"),N17/4+D50,IF(AND(N23="ANUAL",J23="SEMESTRAL"),N17/2+D50,IF(AND(N23="SEMESTRAL",J23="MENSUAL"),N17/6+D50,IF(AND(N23="SEMESTRAL",J23="TRIMESTRAL"),N17/2+D50,IF(AND(N23="SEMESTRAL",J23="SEMESTRAL"),N17,IF(AND(N23="TRIMESTRAL",J23="MENSUAL"),N17/3+D50,IF(AND(N23="TRIMESTRAL",J23="TRIMESTRAL"),N17,IF(AND(N23="MENSUAL",J23="MENSUAL"),N17,""))))))))) -> 0.8 | F50: =IF(AND(N23="ANUAL",J23="MENSUAL"),N17/12+E50,IF(AND(N23="ANUAL",J23="TRIMESTRAL"),N17/4+E50,IF(AND(N23="SEMESTRAL",J23="MENSUAL"),N17/6+E50,IF(AND(N23="SEMESTRAL",J23="TRIMESTRAL"),N17/2,IF(AND(N23="TRIMESTRAL",J23="MENSUAL"),N17/3+E50,IF(AND(N23="TRIMESTRAL",J23="TRIMESTRAL"),N17,IF(AND(N23="MENSUAL",J23="MENSUAL"),N17,""))))))) -> 0.8 | G50: =IF(AND(N23="ANUAL",J23="MENSUAL"),N17/12+F50,IF(AND(N23="ANUAL",J23="TRIMESTRAL"),N17/4+F50,IF(AND(N23="SEMESTRAL",J23="MENSUAL"),N17/6+F50,IF(AND(N23="SEMESTRAL",J23="TRIMESTRAL"),N17/2+F50,IF(AND(N23="TRIMESTRAL",J23="MENSUAL"),N17/3,IF(AND(N23="TRIMESTRAL",J23="TRIMESTRAL"),N17,IF(AND(N23="MENSUAL",J23="MENSUAL"),N17,""))))))) -> 0.8 | H50: =IF(AND($N$23="ANUAL",$J$23="MENSUAL"),$N$17/12+G50,IF(AND(N23="SEMESTRAL",J23="MENSUAL"),N17/6+G50,IF(AND(N23="TRIMESTRAL",J23="MENSUAL"),N17/3+G50,IF(AND(N23="MENSUAL",J23="MENSUAL"),N17,"")))) ->  | I50: =IF(AND($N$23="ANUAL",$J$23="MENSUAL"),$N$17/12+H50,IF(AND(N23="SEMESTRAL",J23="MENSUAL"),N17/6+H50,IF(AND(N23="TRIMESTRAL",J23="MENSUAL"),N17/3+H50,IF(AND(N23="MENSUAL",J23="MENSUAL"),N17,"")))) ->  | J50: =IF(AND($N$23="ANUAL",$J$23="MENSUAL"),$N$17/12+I50,IF(AND(N23="SEMESTRAL",J23="MENSUAL"),N17/6,IF(AND(N23="TRIMESTRAL",J23="MENSUAL"),N17/3,IF(AND(N23="MENSUAL",J23="MENSUAL"),N17,"")))) ->  | K50: =IF(AND($N$23="ANUAL",$J$23="MENSUAL"),$N$17/12+J50,IF(AND(N23="SEMESTRAL",J23="MENSUAL"),N17/6+J50,IF(AND(N23="TRIMESTRAL",J23="MENSUAL"),N17/3+J50,IF(AND(N23="MENSUAL",J23="MENSUAL"),N17,"")))) ->  | L50: =IF(AND($N$23="ANUAL",$J$23="MENSUAL"),$N$17/12+K50,IF(AND(N23="SEMESTRAL",J23="MENSUAL"),N17/6+K50,IF(AND(N23="TRIMESTRAL",J23="MENSUAL"),N17/3+K50,IF(AND(N23="MENSUAL",J23="MENSUAL"),N17,"")))) ->  | M50: =IF(AND($N$23="ANUAL",$J$23="MENSUAL"),$N$17/12+L50,IF(AND(N23="SEMESTRAL",J23="MENSUAL"),N17/6+L50,IF(AND(N23="TRIMESTRAL",J23="MENSUAL"),N17/3,IF(AND(N23="MENSUAL",J23="MENSUAL"),N17,"")))) ->  | N50: =IF(AND($N$23="ANUAL",$J$23="MENSUAL"),$N$17/12+M50,IF(AND(N23="SEMESTRAL",J23="MENSUAL"),N17/6+M50,IF(AND(N23="TRIMESTRAL",J23="MENSUAL"),N17/3+M50,IF(AND(N23="MENSUAL",J23="MENSUAL"),N17,"")))) ->  | O50: =IF(AND($N$23="ANUAL",$J$23="MENSUAL"),$N$17/12+N50,IF(AND(N23="SEMESTRAL",J23="MENSUAL"),N17/6+N50,IF(AND(N23="TRIMESTRAL",J23="MENSUAL"),N17/3+N50,IF(AND(N23="MENSUAL",J23="MENSUAL"),N17,"")))) -> 
C52: NIVEL DE SEGREGACIÓN *
C53: UNIDAD SEGREGADA (Ej. Facultad, Programa Académico, Área) | G53: RESULTADO | K53: ANÁLISIS DE DATOS SEGREGADO
G72: Estratégico | J72: Eficacia
G73: Misional | J73: Eficiencia
G74: Apoyo | J74: Acreditación
G75: Seguimiento, Medición, Análisis y Evaluación | J75: Positiva
G76: Direccionamiento Estratégico | J76: Negativa
G77: Planeación Institucional | J77: Por Unidad Regional
G78: Proyectos Especiales y Relaciones Interinstitucionales | J78: Por Facultad
G79: Sistemas Integrados | J79: Por Programa Académico
G80: Autoevaluación y Acreditación | J80: Por área
G81: Comunicaciones | J81: Por Laboratorio
G82: Formación y Aprendizaje | J82: Otros
G83: Ciencia, Tecnología e Innovación | J83: No Aplica
G84: Interacción Social Universitaria
G85: Bienestar Universitario
G86: Admisiones y Registro
G87: Graduados
G88: Dialogando con el Mundo
G89: Talento Humano
G90: Jurídica
G91: Financiera
G92: Sistemas y Tecnología
G93: Bienes y Servicios
G94: Documental
G95: Apoyo Académico
G96: Control Interno
G97: Control Disciplinario
G98: Servicio de Atención al Ciudadano

Sheet ADO-3
B2: REGRESAR
E5: MACROPROCESO ESTRATÉGICO | M5: CÓDIGO: ESGr027
E6: PROCESO GESTIÓN SISTEMAS INTEGRADOS | M6: VERSIÓN: 8
E7: MATRIZ DE MEDICIÓN Y SEGUIMIENTO A LOS PROCESOS DE GESTIÓN | M7: VIGENCIA: 2023-07-28
M8: PÁGINA: 3 de 4
C10: FICHA DE INDICADOR
C12: MACROPROCESO | E12: Apoyo | I12: NOMBRE DEL INDICADOR | K12: Eficacia en la atención a requerimientos de archivo
C13: PROCESO GESTIÓN | E13: Documental
C14: RESPONSABLE DE MEDICIÓN | E14: Jefe de la Oficina de Archivo y Correspondencia
C16: 1. COMPORTAMIENTO DE INDICADOR
C17: CLASIFICACIÓN DE LA MEDICIÓN | E17: 1 | H17: TIPO DE INDICADOR | J17: Eficacia | L17: META ANUAL | N17: 0.95
C18: FORMULA | E18: NUMERADOR | G18: # de solicitudes atendidas oportunamente en el tiempo establecido | L18: UNIDAD DE MEDIDA | N18: Porcentual
E19: DENOMINADOR | G19: # de solicitudes recibidas *100
C20: TENDENCIA | E20: Positiva | H20: NIVEL DE SEGREGACIÓN * | J20: No Aplica | L20: ESCALA
L21: Deficiente | M21: Aceptable | N21: Bueno | O21: Excelente
L22: 0% - 23% | M22: 24% - 47% | N22: 48% - 94% | O22: ≥95%
C23: ORIGEN DE DATOS NUMERADOR | E23: Informe de solicitudes atendidas | H23: FRECUENCIA DE LA MEDICIÓN | J23: TRIMESTRAL | L23: FRECUENCIA DE RESULTADO | N23: TRIMESTRAL
C24: ORIGEN DE DATOS DENOMINADOR | E24: Recopilación de las solicitudes recibidas
C26: RESULTADOS
J27: ANÁLISIS DE DATOS
J28: En el I TRIMESTRE en la oficina de Archivo y Correspondencia, se recibieron 465 solicitudes de información, lo cual es octavo un 97% en respuestas oportunamente, es decir, un total de 451 respuestas oportunas dentro de los términos establecidos en el manual ADOM001. EL 3% de las respuestas que no se brindaron oportunamente, fue porque la información se realizó la búsqueda manualmente, lo que implica revisar carpeta por carpeta. En el II TRIMESTRE no se logró la meta establecida, se puede observar en la respectiva gráfica qué, entre los meses de abril a junio del año en curso, se logra obtener un 92% en respuestas atendidas oportunamente y un 8% la información que se requiere depende de otras dependencias, en ocasiones se demoran en brindarnos la información requerida y por esto no se da respuesta al usuario en los tiempos establecidos. En el III TRIMESTRE, como se muestra a continuación en la gráfica, se puede verificar que no se cumplió la meta establecida, toda vez que la información que se requería para cumplir con estas solicitudes dependía de otras dependencias. Por la demora de la entrega de la información que se requería no se pudo brindar las respuestas oportunamente. En el IV TRIMESTRE, no se logró la meta establecida teniendo en cuenta que el aplicativo de SIA observa se encontraba fuera de servicio y se recurrió a solicitar las hojas de vida, para atender las solicitudes, pero también se presentó demoras en las entregas de las HV, lo cual no permitió cumplir con las solicitudes a tiempo. Por lo anterior la oficina de Archivo y Correspondencia, para brindar respuestas oportunas depende de otra área, para dar el cumplimiento en los tiempos establecidos, como lo determina el manual de gestión documental ADOM001.
J34: ACCIÓN FORMULADA
J35: La oficina de Archivo y Correspondencia esta sistematizando la información para brindar las respuestas oportunamente.
J41: RESPONSABLE
J42: =E14 -> Jefe de la Oficina de Archivo y Correspondencia
C45: PERIODO DE EVALUACIÓN
C46: MES | D46: =IF(J23="MENSUAL","ENERO",IF(J23="TRIMESTRAL","MARZO",IF(J23="SEMESTRAL","JUNIO",IF(J23="ANUAL",YEAR(TODAY()),"")))) -> MARZO | E46: =IF(J23="MENSUAL","FEBRERO",IF(J23="TRIMESTRAL","JUNIO",IF(J23="SEMESTRAL","DICIEMBRE",""))) -> JUNIO | F46: =IF(J23="MENSUAL","MARZO",IF(J23="TRIMESTRAL","SEPTIEMBRE","")) -> SEPTIEMBRE | G46: =IF(J23="MENSUAL","ABRIL",IF(J23="TRIMESTRAL","DICIEMBRE","")) -> DICIEMBRE | H46: =IF(J23="MENSUAL","MAYO","") ->  | I46: =IF(J23="MENSUAL","JUNIO","") ->  | J46: =IF(J23="MENSUAL","JULIO","") ->  | K46: =IF(J23="MENSUAL","AGOSTO","") ->  | L46: =IF(J23="MENSUAL","SEPTIEMBRE","") ->  | M46: =IF(J23="MENSUAL","OCTUBRE","") ->  | N46: =IF(J23="MENSUAL","NOVIEMBRE","") ->  | O46: =IF(J23="MENSUAL","DICIEMBRE","") -> 
C47: =G18 -> # de solicitudes atendidas oportunamente en el tiempo establecido | D47: 451 | E47: 132 | F47: 154 | G47: 221
C48: =G19 -> # de solicitudes recibidas *100 | D48: 465 | E48: 144 | F48: 179 | G48: 241
C49: VALOR | D49: =IFERROR(IF($E$17=1,D47/D48,IF($E$17=2,D47,"")),"") -> 0.9698924731 | E49: =IFERROR(IF($E$17=1,E47/E48,IF($E$17=2,E47,"")),"") -> 0.9166666667 | F49: 0.8603351955 | G49: 0.9170124481 | H49: =IFERROR(IF($E$17=1,H47/H48,IF($E$17=2,H47,"")),"") -> 
C50: META PONDERADA | D50: =IF(AND(N23="ANUAL",J23="MENSUAL"),N17/12,IF(AND(N23="ANUAL",J23="TRIMESTRAL"),N17/4,IF(AND(N23="ANUAL",J23="SEMESTRAL"),N17/2,IF(AND(N23="ANUAL",J23="ANUAL"),N17,IF(AND(N23="SEMESTRAL",J23="MENSUAL"),N17/6,IF(AND(N23="SEMESTRAL",J23="TRIMESTRAL"),N17/2,IF(AND(N23="SEMESTRAL",J23="SEMESTRAL"),N17,IF(AND(N23="SEMESTRAL",J23="ANUAL"),"REVISAR FRECUENCIAS",IF(AND(N23="TRIMESTRAL",J23="MENSUAL"),N17/3,IF(AND(N23="TRIMESTRAL",J23="TRIMESTRAL"),N17,IF(AND(N23="TRIMESTRAL",J23="SEMESTRAL"),"REVISAR FRECUENCIAS",IF(AND(N23="TRIMESTRAL",J23="ANUAL"),"REVISAR FRECUENCIAS",IF(AND(N23="MENSUAL",J23="MENSUAL"),N17,IF(AND(N23="MENSUAL",J23="TRIMESTRAL"),"REVISAR FRECUENCIAS",IF(AND(N23="MENSUAL",J23="SEMESTRAL"),"REVISAR FRECUENCIAS",IF(AND(N23="MENSUAL",J23="ANUAL"),"REVISAR FRECUENCIAS","")))))))))))))))) -> 0.95 | E50: =IF(AND(N23="ANUAL",J23="MENSUAL"),N17/12+D50,IF(AND(N23="ANUAL",J23="TRIMESTRAL"),N17/4+D50,IF(AND(N23="ANUAL",J23="SEMESTRAL"),N17/2+D50,IF(AND(N23="SEMESTRAL",J23="MENSUAL"),N17/6+D50,IF(AND(N23="SEMESTRAL",J23="TRIMESTRAL"),N17/2+D50,IF(AND(N23="SEMESTRAL",J23="SEMESTRAL"),N17,IF(AND(N23="TRIMESTRAL",J23="MENSUAL"),N17/3+D50,IF(AND(N23="TRIMESTRAL",J23="TRIMESTRAL"),N17,IF(AND(N23="MENSUAL",J23="MENSUAL"),N17,""))))))))) -> 0.95 | F50: =IF(AND(N23="ANUAL",J23="MENSUAL"),N17/12+E50,IF(AND(N23="ANUAL",J23="TRIMESTRAL"),N17/4+E50,IF(AND(N23="SEMESTRAL",J23="MENSUAL"),N17/6+E50,IF(AND(N23="SEMESTRAL",J23="TRIMESTRAL"),N17/2,IF(AND(N23="TRIMESTRAL",J23="MENSUAL"),N17/3+E50,IF(AND(N23="TRIMESTRAL",J23="TRIMESTRAL"),N17,IF(AND(N23="MENSUAL",J23="MENSUAL"),N17,""))))))) -> 0.95 | G50: =IF(AND(N23="ANUAL",J23="MENSUAL"),N17/12+F50,IF(AND(N23="ANUAL",J23="TRIMESTRAL"),N17/4+F50,IF(AND(N23="SEMESTRAL",J23="MENSUAL"),N17/6+F50,IF(AND(N23="SEMESTRAL",J23="TRIMESTRAL"),N17/2+F50,IF(AND(N23="TRIMESTRAL",J23="MENSUAL"),N17/3,IF(AND(N23="TRIMESTRAL",J23="TRIMESTRAL"),N17,IF(AND(N23="MENSUAL",J23="MENSUAL"),N17,""))))))) -> 0.95 | H50: =IF(AND($N$23="ANUAL",$J$23="MENSUAL"),$N$17/12+G50,IF(AND(N23="SEMESTRAL",J23="MENSUAL"),N17/6+G50,IF(AND(N23="TRIMESTRAL",J23="MENSUAL"),N17/3+G50,IF(AND(N23="MENSUAL",J23="MENSUAL"),N17,"")))) ->  | I50: =IF(AND($N$23="ANUAL",$J$23="MENSUAL"),$N$17/12+H50,IF(AND(N23="SEMESTRAL",J23="MENSUAL"),N17/6+H50,IF(AND(N23="TRIMESTRAL",J23="MENSUAL"),N17/3+H50,IF(AND(N23="MENSUAL",J23="MENSUAL"),N17,"")))) ->  | J50: =IF(AND($N$23="ANUAL",$J$23="MENSUAL"),$N$17/12+I50,IF(AND(N23="SEMESTRAL",J23="MENSUAL"),N17/6,IF(AND(N23="TRIMESTRAL",J23="MENSUAL"),N17/3,IF(AND(N23="MENSUAL",J23="MENSUAL"),N17,"")))) ->  | K50: =IF(AND($N$23="ANUAL",$J$23="MENSUAL"),$N$17/12+J50,IF(AND(N23="SEMESTRAL",J23="MENSUAL"),N17/6+J50,IF(AND(N23="TRIMESTRAL",J23="MENSUAL"),N17/3+J50,IF(AND(N23="MENSUAL",J23="MENSUAL"),N17,"")))) ->  | L50: =IF(AND($N$23="ANUAL",$J$23="MENSUAL"),$N$17/12+K50,IF(AND(N23="SEMESTRAL",J23="MENSUAL"),N17/6+K50,IF(AND(N23="TRIMESTRAL",J23="MENSUAL"),N17/3+K50,IF(AND(N23="MENSUAL",J23="MENSUAL"),N17,"")))) ->  | M50: =IF(AND($N$23="ANUAL",$J$23="MENSUAL"),$N$17/12+L50,IF(AND(N23="SEMESTRAL",J23="MENSUAL"),N17/6+L50,IF(AND(N23="TRIMESTRAL",J23="MENSUAL"),N17/3,IF(AND(N23="MENSUAL",J23="MENSUAL"),N17,"")))) ->  | N50: =IF(AND($N$23="ANUAL",$J$23="MENSUAL"),$N$17/12+M50,IF(AND(N23="SEMESTRAL",J23="MENSUAL"),N17/6+M50,IF(AND(N23="TRIMESTRAL",J23="MENSUAL"),N17/3+M50,IF(AND(N23="MENSUAL",J23="MENSUAL"),N17,"")))) ->  | O50: =IF(AND($N$23="ANUAL",$J$23="MENSUAL"),$N$17/12+N50,IF(AND(N23="SEMESTRAL",J23="MENSUAL"),N17/6+N50,IF(AND(N23="TRIMESTRAL",J23="MENSUAL"),N17/3+N50,IF(AND(N23="MENSUAL",J23="MENSUAL"),N17,"")))) -> 
C52: NIVEL DE SEGREGACIÓN *
C53: UNIDAD SEGREGADA (Ej. Facultad, Programa Académico, Área) | G53: RESULTADO | K53: ANÁLISIS DE DATOS SEGREGADO
G72: Estratégico | J72: Eficacia
G73: Misional | J73: Eficiencia
G74: Apoyo | J74: Acreditación
G75: Seguimiento, Medición, Análisis y Evaluación | J75: Positiva
G76: Direccionamiento Estratégico | J76: Negativa
G77: Planeación Institucional | J77: Por Unidad Regional
G78: Proyectos Especiales y Relaciones Interinstitucionales | J78: Por Facultad
G79: Sistemas Integrados | J79: Por Programa Académico
G80: Autoevaluación y Acreditación | J80: Por área
G81: Comunicaciones | J81: Por Laboratorio
G82: Formación y Aprendizaje | J82: Otros
G83: Ciencia, Tecnología e Innovación | J83: No Aplica
G84: Interacción Social Universitaria
G85: Bienestar Universitario
G86: Admisiones y Registro
G87: Graduados
G88: Dialogando con el Mundo
G89: Talento Humano
G90: Jurídica
G91: Financiera
G92: Sistemas y Tecnología
G93: Bienes y Servicios
G94: Documental
G95: Apoyo Académico
G96: Control Interno
G97: Control Disciplinario
G98: Servicio de Atención al Ciudadano

Sheet ACTUALIZACIONES
C2: MACROPROCESO ESTRATÉGICO | E2: CÓDIGO: ESGr027
C3: PROCESO GESTIÓN SISTEMAS INTEGRADOS - CALIDAD | E3: VERSIÓN: 8
C4: MATRIZ DE MEDICIÓN Y SEGUIMIENTO A LOS PROCESOS DE GESTIÓN | E4: VIGENCIA: 2023-07-28
E5: PÁGINA: 4 de 4
B7: CONTROL DE ACTUALIZACIONES
B8: FECHA | C8: DESCRIPCIÓN DE LA ACTUALIZACIÓN | D8: RESPONSABLE | E8: CARGO
B9: 2020-03-31 | C9: Se realizaron ajustes a la meta del indicador ADO1 acorde con los resultados obtenidos durante la vigencia de 2019. | D9: Ruth Elisa Cárdenas Bayona | E9: Jefe de Documental
B10: 2022-03-10 | C10: Se crea el indicador Cumplimiento en la digitalización de documentos, identificado con el ADO-2 | D10: Isabel Quintero Uribe (F.A) | E10: Jefe de Documental
B11: 2023-03-13 | C11: De acuerdo a lo presentado en la auditoria interna del SGC de la vigencia 2022, se crea el indicador ADO-3 Eficacia en la atención a requerimientos de archivo. Para el indicador ADO-2, de acuerdo con los resultados de la vigencia 2022, se aumenta la meta del 40% al 60%. | D11: Isabel Quintero Uribe (F.A) | E11: Jefe de Documental
B12: 2023-07-29 | C12: Se incorpora la planificación de actividades para cada objetivo específico. | D12: Isabel Quintero Uribe (F.A) | E12: Jefe de Documental
B13: 2024-02-15 | C13: Para el indicador ADO-2 el proceso confirma la adquisición de equipos que llegarían en el mes de marzo y los cuales reforzaran la digitalización de los documentos y se lograría a primer semestre el cumplimiento del indicador. Se sugiere que el proceso cuente con el presupuesto para el mantenimiento anual. Se aclara que este indicador No Aplica segregación, al concentrarse toda la operación en Fusagasugá. Se realizan ajustes al indicador ADO-3 en cuanto al aumento de la meta del 80% al 95% , se le sugiere al proceso revisar de manera mensual el número de solicitudes recibidas y las solicitudes respondidas en los tiempos establecidos y las que tuvieron algún tipo de demora, con el fin de identificar posibles cuellos de botella. Se aclara que este indicador No Aplica segregación, al concentrarse toda la operación en Fusagasugá. | D13: Isabel Quintero Uribe (F.A) | E13: Jefe de Documental
B26: Diagonal 18 No. 20-29 Fusagasugá – Cundinamarca Teléfono (601) 8281483 Línea Gratuita 018000180414 www.ucundinamarca.edu.co E-mail: info@ucundinamarca.edu.co NIT: 890.680.062-2
B29: Documento controlado por el Sistema de Gestión de la Calidad Asegúrese que corresponde a la última versión consultando el Portal Institucional

Sheet AFI-2 (hidden)
B2: REGRESAR
E5: MACROPROCESO ESTRATÉGICO | M5: CÓDIGO: ESGr027
E6: PROCESO GESTIÓN SISTEMAS INTEGRADOS | M6: VERSIÓN: 7
E7: MATRIZ DE MEDICIÓN Y SEGUIMIENTO A LOS PROCESOS DE GESTIÓN | M7: VIGENCIA: 2020-03-20
M8: PÁGINA: 1 de 1
C10: FICHA DE INDICADOR
C12: MACROPROCESO | E12: Apoyo | I12: NOMBRE DEL INDICADOR | K12: Recuperación de cartera
C13: PROCESO GESTIÓN | E13: Financiera
C14: RESPONSABLE DE MEDICIÓN | E14: Director(a) Financiera
C16: 1. COMPORTAMIENTO DE INDICADOR
C17: CLASIFICACIÓN DE LA MEDICIÓN | E17: 1 | H17: TIPO DE INDICADOR | J17: Eficacia | L17: META ANUAL | N17: 0.9
C18: FORMULA | E18: NUMERADOR | G18: Total cartera recuperada*100 | L18: UNIDAD DE MEDIDA | N18: Porcentual
E19: DENOMINADOR | G19: Total cartera por matriculas
C20: TENDENCIA | E20: Positiva | H20: NIVEL DE SEGREGACIÓN * | J20: Otros | L20: ESCALA
L21: Deficiente | M21: Aceptable | N21: Bueno | O21: Excelente
L22: 0 - 60% | M22: 61% - 80% | N22: 81% - 90% | O22: 91% - 100%
C23: ORIGEN DE DATOS NUMERADOR | E23: Informes de gestión de la oficina de apoyo financiero | H23: FRECUENCIA DE LA MEDICIÓN | J23: SEMESTRAL | L23: FRECUENCIA DE RESULTADO | N23: ANUAL
C24: ORIGEN DE DATOS DENOMINADOR | E24: Informes de gestión de la oficina de apoyo financiero
C26: RESULTADOS
J27: ANÁLISIS DE DATOS
J28: SEMESTRE II: Que a diciembre 31 del 2020 se cerró con una cartera consolidada de $34.524.412 y a su vez para el 2020-2 se financió el monto de $23.324.813 para un total de $ 57.849.225, al cierre de diciembre se había recaudado $ 23.191.968 para un cumplimiento del 40%. Nota: Cabe resaltar que al cierre de diciembre del 2019 había una cartera de 41.834.178, teniendo en cuenta que se suman dos semestres más (2020-1 y 2020-2), la cartera a diciembre del 2020-2 cierra con un valor de $34.524.412, lo cual da una recuperación de cartera de $7.309.766. Por otra parte, es de aclarar que la cartera del primer periodo académico del 2010 al primer periodo académico del 2017 se ha entregado a la Oficina Jurídica, para entablar la respectiva demanda y dar inicio al cobro jurídico.
J34: ACCIÓN FORMULADA
J35: N/A
J41: RESPONSABLE
J42: =E14 -> Director(a) Financiera
C45: PERIODO DE EVALUACIÓN
C46: MES | D46: =IF(J23="MENSUAL","ENERO",IF(J23="TRIMESTRAL","MARZO",IF(J23="SEMESTRAL","JUNIO",IF(J23="ANUAL",YEAR(TODAY()),"")))) -> JUNIO | E46: =IF(J23="MENSUAL","FEBRERO",IF(J23="TRIMESTRAL","JUNIO",IF(J23="SEMESTRAL","DICIEMBRE",""))) -> DICIEMBRE | F46: =IF(J23="MENSUAL","MARZO",IF(J23="TRIMESTRAL","SEPTIEMBRE","")) ->  | G46: =IF(J23="MENSUAL","ABRIL",IF(J23="TRIMESTRAL","DICIEMBRE","")) ->  | H46: =IF(J23="MENSUAL","MAYO","") ->  | I46: =IF(J23="MENSUAL","JUNIO","") ->  | J46: =IF(J23="MENSUAL","JULIO","") ->  | K46: =IF(J23="MENSUAL","AGOSTO","") ->  | L46: =IF(J23="MENSUAL","SEPTIEMBRE","") ->  | M46: =IF(J23="MENSUAL","OCTUBRE","") ->  | N46: =IF(J23="MENSUAL","NOVIEMBRE","") ->  | O46: =IF(J23="MENSUAL","DICIEMBRE","") -> 
C47: =G18 -> Total cartera recuperada*100 | D47: 129584224 | E47: =23191968 -> 23191968
C48: =G19 -> Total cartera por matriculas | D48: 180820762 | E48: 57849225
C49: VALOR | D49: =IFERROR(IF($E$17=1,D47/D48,IF($E$17=2,D47,"")),"") -> 0.7166446074 | E49: =IFERROR(IF($E$17=1,E47/E48,IF($E$17=2,E47,"")),"") -> 0.400903694
C50: META PONDERADA | D50: =IF(AND(N23="ANUAL",J23="MENSUAL"),N17/12,IF(AND(N23="ANUAL",J23="TRIMESTRAL"),N17/4,IF(AND(N23="ANUAL",J23="SEMESTRAL"),N17/2,IF(AND(N23="ANUAL",J23="ANUAL"),N17,IF(AND(N23="SEMESTRAL",J23="MENSUAL"),N17/6,IF(AND(N23="SEMESTRAL",J23="TRIMESTRAL"),N17/2,IF(AND(N23="SEMESTRAL",J23="SEMESTRAL"),N17,IF(AND(N23="SEMESTRAL",J23="ANUAL"),"REVISAR FRECUENCIAS",IF(AND(N23="TRIMESTRAL",J23="MENSUAL"),N17/3,IF(AND(N23="TRIMESTRAL",J23="TRIMESTRAL"),N17,IF(AND(N23="TRIMESTRAL",J23="SEMESTRAL"),"REVISAR FRECUENCIAS",IF(AND(N23="TRIMESTRAL",J23="ANUAL"),"REVISAR FRECUENCIAS",IF(AND(N23="MENSUAL",J23="MENSUAL"),N17,IF(AND(N23="MENSUAL",J23="TRIMESTRAL"),"REVISAR FRECUENCIAS",IF(AND(N23="MENSUAL",J23="SEMESTRAL"),"REVISAR FRECUENCIAS",IF(AND(N23="MENSUAL",J23="ANUAL"),"REVISAR FRECUENCIAS","")))))))))))))))) -> 0.45 | E50: =IF(AND(N23="ANUAL",J23="MENSUAL"),N17/12+D50,IF(AND(N23="ANUAL",J23="TRIMESTRAL"),N17/4+D50,IF(AND(N23="ANUAL",J23="SEMESTRAL"),N17/2+D50,IF(AND(N23="SEMESTRAL",J23="MENSUAL"),N17/6+D50,IF(AND(N23="SEMESTRAL",J23="TRIMESTRAL"),N17/2+D50,IF(AND(N23="SEMESTRAL",J23="SEMESTRAL"),N17,IF(AND(N23="TRIMESTRAL",J23="MENSUAL"),N17/3+D50,IF(AND(N23="TRIMESTRAL",J23="TRIMESTRAL"),N17,IF(AND(N23="MENSUAL",J23="MENSUAL"),N17,""))))))))) -> 0.9 | F50: =IF(AND(N23="ANUAL",J23="MENSUAL"),N17/12+E50,IF(AND(N23="ANUAL",J23="TRIMESTRAL"),N17/4+E50,IF(AND(N23="SEMESTRAL",J23="MENSUAL"),N17/6+E50,IF(AND(N23="SEMESTRAL",J23="TRIMESTRAL"),N17/2,IF(AND(N23="TRIMESTRAL",J23="MENSUAL"),N17/3+E50,IF(AND(N23="TRIMESTRAL",J23="TRIMESTRAL"),N17,IF(AND(N23="MENSUAL",J23="MENSUAL"),N17,""))))))) ->  | G50: =IF(AND(N23="ANUAL",J23="MENSUAL"),N17/12+F50,IF(AND(N23="ANUAL",J23="TRIMESTRAL"),N17/4+F50,IF(AND(N23="SEMESTRAL",J23="MENSUAL"),N17/6+F50,IF(AND(N23="SEMESTRAL",J23="TRIMESTRAL"),N17/2+F50,IF(AND(N23="TRIMESTRAL",J23="MENSUAL"),N17/3,IF(AND(N23="TRIMESTRAL",J23="TRIMESTRAL"),N17,IF(AND(N23="MENSUAL",J23="MENSUAL"),N17,""))))))) ->  | H50: =IF(AND($N$23="ANUAL",$J$23="MENSUAL"),$N$17/12+G50,IF(AND(N23="SEMESTRAL",J23="MENSUAL"),N17/6+G50,IF(AND(N23="TRIMESTRAL",J23="MENSUAL"),N17/3+G50,IF(AND(N23="MENSUAL",J23="MENSUAL"),N17,"")))) ->  | I50: =IF(AND($N$23="ANUAL",$J$23="MENSUAL"),$N$17/12+H50,IF(AND(N23="SEMESTRAL",J23="MENSUAL"),N17/6+H50,IF(AND(N23="TRIMESTRAL",J23="MENSUAL"),N17/3+H50,IF(AND(N23="MENSUAL",J23="MENSUAL"),N17,"")))) ->  | J50: =IF(AND($N$23="ANUAL",$J$23="MENSUAL"),$N$17/12+I50,IF(AND(N23="SEMESTRAL",J23="MENSUAL"),N17/6,IF(AND(N23="TRIMESTRAL",J23="MENSUAL"),N17/3,IF(AND(N23="MENSUAL",J23="MENSUAL"),N17,"")))) ->  | K50: =IF(AND($N$23="ANUAL",$J$23="MENSUAL"),$N$17/12+J50,IF(AND(N23="SEMESTRAL",J23="MENSUAL"),N17/6+J50,IF(AND(N23="TRIMESTRAL",J23="MENSUAL"),N17/3+J50,IF(AND(N23="MENSUAL",J23="MENSUAL"),N17,"")))) ->  | L50: =IF(AND($N$23="ANUAL",$J$23="MENSUAL"),$N$17/12+K50,IF(AND(N23="SEMESTRAL",J23="MENSUAL"),N17/6+K50,IF(AND(N23="TRIMESTRAL",J23="MENSUAL"),N17/3+K50,IF(AND(N23="MENSUAL",J23="MENSUAL"),N17,"")))) ->  | M50: =IF(AND($N$23="ANUAL",$J$23="MENSUAL"),$N$17/12+L50,IF(AND(N23="SEMESTRAL",J23="MENSUAL"),N17/6+L50,IF(AND(N23="TRIMESTRAL",J23="MENSUAL"),N17/3,IF(AND(N23="MENSUAL",J23="MENSUAL"),N17,"")))) ->  | N50: =IF(AND($N$23="ANUAL",$J$23="MENSUAL"),$N$17/12+M50,IF(AND(N23="SEMESTRAL",J23="MENSUAL"),N17/6+M50,IF(AND(N23="TRIMESTRAL",J23="MENSUAL"),N17/3+M50,IF(AND(N23="MENSUAL",J23="MENSUAL"),N17,"")))) ->  | O50: =IF(AND($N$23="ANUAL",$J$23="MENSUAL"),$N$17/12+N50,IF(AND(N23="SEMESTRAL",J23="MENSUAL"),N17/6+N50,IF(AND(N23="TRIMESTRAL",J23="MENSUAL"),N17/3+N50,IF(AND(N23="MENSUAL",J23="MENSUAL"),N17,"")))) -> 
C52: NIVEL DE SEGREGACIÓN *
C53: UNIDAD SEGREGADA (Ej. Facultad, Programa Académico, Área) | G53: RESULTADO | K53: ANÁLISIS DE DATOS SEGREGADO
G72: Estratégico | J72: Eficacia
G73: Misional | J73: Eficiencia
G74: Apoyo | J74: Acreditación
G75: Seguimiento, Medición, Análisis y Evaluación | J75: Positiva
G76: Direccionamiento Estratégico | J76: Negativa
G77: Planeación Institucional | J77: Por Unidad Regional
G78: Proyectos Especiales y Relaciones Interinstitucionales | J78: Por Facultad
G79: Sistemas Integrados | J79: Por Programa Académico
G80: Autoevaluación y Acreditación | J80: Por área
G81: Comunicaciones | J81: Por Laboratorio
G82: Formación y Aprendizaje | J82: Otros
G83: Ciencia, Tecnología e Innovación | J83: No Aplica
G84: Interacción Social Universitaria
G85: Bienestar Universitario
G86: Admisiones y Registro
G87: Graduados
G88: Dialogando con el Mundo
G89: Talento Humano
G90: Jurídica
G91: Financiera
G92: Sistemas y Tecnología
G93: Bienes y Servicios
G94: Documental
G95: Apoyo Académico
G96: Control Interno
G97: Control Disciplinario
G98: Servicio de Atención al Ciudadano

Sheet SAC-1 (hidden)
B2: REGRESAR
E5: MACROPROCESO ESTRATÉGICO | M5: CÓDIGO: ESGr027
E6: PROCESO GESTIÓN SISTEMAS INTEGRADOS | M6: VERSIÓN: 7
E7: MATRIZ DE MEDICIÓN Y SEGUIMIENTO A LOS PROCESOS DE GESTIÓN | M7: VIGENCIA: 2020-03-20
M8: PÁGINA: 1 de 1
C10: FICHA DE INDICADOR
C12: MACROPROCESO | E12: Seguimiento, Medición, Análisis y Evaluación | I12: NOMBRE DEL INDICADOR | K12: Control de Términos a las PQR
C13: PROCESO GESTIÓN | E13: Servicio de Atención al Ciudadano
C14: RESPONSABLE DE MEDICIÓN | E14: Gestor Servicio de Atención al Ciudadano
C16: 1. COMPORTAMIENTO DE INDICADOR
C17: CLASIFICACIÓN DE LA MEDICIÓN | E17: 1 | H17: TIPO DE INDICADOR | J17: Eficiencia | L17: META ANUAL | N17: 0.1
C18: FORMULA | E18: NUMERADOR | G18: Total PQR con ampliación de términos | L18: UNIDAD DE MEDIDA | N18: Porcentual
E19: DENOMINADOR | G19: Total PQR atendidas*100
C20: TENDENCIA | E20: Negativa | H20: NIVEL DE SEGREGACIÓN * | J20: No Aplica | L20: ESCALA
L21: Deficiente | M21: Aceptable | N21: Bueno | O21: Excelente
L22: ≥ 13% | M22: 11%-12% | N22: 6%-10% | O22: 1% - 5%
C23: ORIGEN DE DATOS NUMERADOR | E23: Aplicativo SAIC | H23: FRECUENCIA DE LA MEDICIÓN | J23: TRIMESTRAL | L23: FRECUENCIA DE RESULTADO | N23: TRIMESTRAL
C24: ORIGEN DE DATOS DENOMINADOR | E24: Aplicativo SAIC
C26: RESULTADOS
J27: ANÁLISIS DE DATOS
J28: I TRIMESTRE Para este trimestre se toma como base el reporte generado de fecha 1 de enero al 31 de marzo de 2020, se realiza el respectivo análisis y se encontró que del total de las peticiones instauradas por la ciudadanía se amplió términos a 44 solicitudes lo que representa el 9% del total, esto se da teniendo en cuenta la situación presentada en el país del aislamiento por emergencia sanitaria, también se pudo identificar que las solicitudes que tuvo más ampliación fueron las peticiones de información dado que está en su mayoría son solicitudes de documentos, sin embargo se puede identificar que de acuerdo al indicador y a la meta establecida el resultado fue del 10%, en donde se puede corroborar el esfuerzo de atender a tiempo las solicitudes por parte de los funcionarios de la Universidad de Cundinamarca. II TRIMESTRE Para este trimestre se toma como base el reporte generado de fecha 1 de abril al 30 de junio de 2020, se realiza el respectivo análisis y se encontró que del total de las peticiones instauradas por la ciudadanía se amplió términos a 19 solicitudes lo que representa el 7% del total, esto se da teniendo en cuenta la situación presentada en el país del aislamiento por emergencia sanitaria Covid 19 y también se pudo identificar que las solicitudes que tuvo más ampliación fueron las peticiones de información dado que está en su mayoría son solicitudes de documentos el cual por la situación actual la búsqueda de los documentos se tiene que hacer en físico y teniendo en cuenta el pico y cedula regido por el municipio, sin embargo se puede identificar que de acuerdo al indicador y a la meta establecida el resultado fue del 7%, en donde se puede corroborar el esfuerzo de atender a tiempo las solicitudes por parte de los funcionarios de la Universidad de Cundinamarca.
J34: ACCIÓN FORMULADA
J35: I TRIMESTRE 1. se hace seguimiento constante de las solicitudes allegadas a la oficina de servicio de atención al ciudadano, mediante notificación cada tercer día a los correos institucionales desde el sistema de atención e información al ciudadano (SAIC) donde se les recuerda las peticiones que tienen pendientes por atender. 2. Se hace seguimiento también mediante llamada telefónica a los funcionarios competentes donde se les informa que la solicitud esta pronto a vencerse por términos de acuerdo con la ley 1437 de 2011. II TRIMESTRE 1. Realizar seguimiento constante de las solicitudes allegadas a la oficina de servicio de atención al ciudadano, mediante notificación cada tercer día a los correos institucionales desde el sistema de atención e información al ciudadano (SAIC) donde se les recuerda las peticiones que tienen pendientes por atender.
J41: RESPONSABLE
J42: =E14 -> Gestor Servicio de Atención al Ciudadano
C45: PERIODO DE EVALUACIÓN
C46: MES | D46: =IF(J23="MENSUAL","ENERO",IF(J23="TRIMESTRAL","MARZO",IF(J23="SEMESTRAL","JUNIO",IF(J23="ANUAL",YEAR(TODAY()),"")))) -> MARZO | E46: =IF(J23="MENSUAL","FEBRERO",IF(J23="TRIMESTRAL","JUNIO",IF(J23="SEMESTRAL","DICIEMBRE",""))) -> JUNIO | F46: =IF(J23="MENSUAL","MARZO",IF(J23="TRIMESTRAL","SEPTIEMBRE","")) -> SEPTIEMBRE | G46: =IF(J23="MENSUAL","ABRIL",IF(J23="TRIMESTRAL","DICIEMBRE","")) -> DICIEMBRE | H46: =IF(J23="MENSUAL","MAYO","") ->  | I46: =IF(J23="MENSUAL","JUNIO","") ->  | J46: =IF(J23="MENSUAL","JULIO","") ->  | K46: =IF(J23="MENSUAL","AGOSTO","") ->  | L46: =IF(J23="MENSUAL","SEPTIEMBRE","") ->  | M46: =IF(J23="MENSUAL","OCTUBRE","") ->  | N46: =IF(J23="MENSUAL","NOVIEMBRE","") ->  | O46: =IF(J23="MENSUAL","DICIEMBRE","") -> 
C47: =G18 -> Total PQR con ampliación de términos | D47: 44 | E47: 19
C48: =G19 -> Total PQR atendidas*100 | D48: 422 | E48: 265
C49: VALOR | D49: =IFERROR(IF($E$17=1,D47/D48,IF($E$17=2,D47,"")),"") -> 0.1042654028 | E49: =IFERROR(IF($E$17=1,E47/E48,IF($E$17=2,E47,"")),"") -> 0.07169811321
C50: META PONDERADA | D50: =IF(AND(N23="ANUAL",J23="MENSUAL"),N17/12,IF(AND(N23="ANUAL",J23="TRIMESTRAL"),N17/4,IF(AND(N23="ANUAL",J23="SEMESTRAL"),N17/2,IF(AND(N23="ANUAL",J23="ANUAL"),N17,IF(AND(N23="SEMESTRAL",J23="MENSUAL"),N17/6,IF(AND(N23="SEMESTRAL",J23="TRIMESTRAL"),N17/2,IF(AND(N23="SEMESTRAL",J23="SEMESTRAL"),N17,IF(AND(N23="SEMESTRAL",J23="ANUAL"),"REVISAR FRECUENCIAS",IF(AND(N23="TRIMESTRAL",J23="MENSUAL"),N17/3,IF(AND(N23="TRIMESTRAL",J23="TRIMESTRAL"),N17,IF(AND(N23="TRIMESTRAL",J23="SEMESTRAL"),"REVISAR FRECUENCIAS",IF(AND(N23="TRIMESTRAL",J23="ANUAL"),"REVISAR FRECUENCIAS",IF(AND(N23="MENSUAL",J23="MENSUAL"),N17,IF(AND(N23="MENSUAL",J23="TRIMESTRAL"),"REVISAR FRECUENCIAS",IF(AND(N23="MENSUAL",J23="SEMESTRAL"),"REVISAR FRECUENCIAS",IF(AND(N23="MENSUAL",J23="ANUAL"),"REVISAR FRECUENCIAS","")))))))))))))))) -> 0.1 | E50: =IF(AND(N23="ANUAL",J23="MENSUAL"),N17/12+D50,IF(AND(N23="ANUAL",J23="TRIMESTRAL"),N17/4+D50,IF(AND(N23="ANUAL",J23="SEMESTRAL"),N17/2+D50,IF(AND(N23="SEMESTRAL",J23="MENSUAL"),N17/6+D50,IF(AND(N23="SEMESTRAL",J23="TRIMESTRAL"),N17/2+D50,IF(AND(N23="SEMESTRAL",J23="SEMESTRAL"),N17,IF(AND(N23="TRIMESTRAL",J23="MENSUAL"),N17/3+D50,IF(AND(N23="TRIMESTRAL",J23="TRIMESTRAL"),N17,IF(AND(N23="MENSUAL",J23="MENSUAL"),N17,""))))))))) -> 0.1 | F50: =IF(AND(N23="ANUAL",J23="MENSUAL"),N17/12+E50,IF(AND(N23="ANUAL",J23="TRIMESTRAL"),N17/4+E50,IF(AND(N23="SEMESTRAL",J23="MENSUAL"),N17/6+E50,IF(AND(N23="SEMESTRAL",J23="TRIMESTRAL"),N17/2,IF(AND(N23="TRIMESTRAL",J23="MENSUAL"),N17/3+E50,IF(AND(N23="TRIMESTRAL",J23="TRIMESTRAL"),N17,IF(AND(N23="MENSUAL",J23="MENSUAL"),N17,""))))))) -> 0.1 | G50: =IF(AND(N23="ANUAL",J23="MENSUAL"),N17/12+F50,IF(AND(N23="ANUAL",J23="TRIMESTRAL"),N17/4+F50,IF(AND(N23="SEMESTRAL",J23="MENSUAL"),N17/6+F50,IF(AND(N23="SEMESTRAL",J23="TRIMESTRAL"),N17/2+F50,IF(AND(N23="TRIMESTRAL",J23="MENSUAL"),N17/3,IF(AND(N23="TRIMESTRAL",J23="TRIMESTRAL"),N17,IF(AND(N23="MENSUAL",J23="MENSUAL"),N17,""))))))) -> 0.1 | H50: =IF(AND($N$23="ANUAL",$J$23="MENSUAL"),$N$17/12+G50,IF(AND(N23="SEMESTRAL",J23="MENSUAL"),N17/6+G50,IF(AND(N23="TRIMESTRAL",J23="MENSUAL"),N17/3+G50,IF(AND(N23="MENSUAL",J23="MENSUAL"),N17,"")))) ->  | I50: =IF(AND($N$23="ANUAL",$J$23="MENSUAL"),$N$17/12+H50,IF(AND(N23="SEMESTRAL",J23="MENSUAL"),N17/6+H50,IF(AND(N23="TRIMESTRAL",J23="MENSUAL"),N17/3+H50,IF(AND(N23="MENSUAL",J23="MENSUAL"),N17,"")))) ->  | J50: =IF(AND($N$23="ANUAL",$J$23="MENSUAL"),$N$17/12+I50,IF(AND(N23="SEMESTRAL",J23="MENSUAL"),N17/6,IF(AND(N23="TRIMESTRAL",J23="MENSUAL"),N17/3,IF(AND(N23="MENSUAL",J23="MENSUAL"),N17,"")))) ->  | K50: =IF(AND($N$23="ANUAL",$J$23="MENSUAL"),$N$17/12+J50,IF(AND(N23="SEMESTRAL",J23="MENSUAL"),N17/6+J50,IF(AND(N23="TRIMESTRAL",J23="MENSUAL"),N17/3+J50,IF(AND(N23="MENSUAL",J23="MENSUAL"),N17,"")))) ->  | L50: =IF(AND($N$23="ANUAL",$J$23="MENSUAL"),$N$17/12+K50,IF(AND(N23="SEMESTRAL",J23="MENSUAL"),N17/6+K50,IF(AND(N23="TRIMESTRAL",J23="MENSUAL"),N17/3+K50,IF(AND(N23="MENSUAL",J23="MENSUAL"),N17,"")))) ->  | M50: =IF(AND($N$23="ANUAL",$J$23="MENSUAL"),$N$17/12+L50,IF(AND(N23="SEMESTRAL",J23="MENSUAL"),N17/6+L50,IF(AND(N23="TRIMESTRAL",J23="MENSUAL"),N17/3,IF(AND(N23="MENSUAL",J23="MENSUAL"),N17,"")))) ->  | N50: =IF(AND($N$23="ANUAL",$J$23="MENSUAL"),$N$17/12+M50,IF(AND(N23="SEMESTRAL",J23="MENSUAL"),N17/6+M50,IF(AND(N23="TRIMESTRAL",J23="MENSUAL"),N17/3+M50,IF(AND(N23="MENSUAL",J23="MENSUAL"),N17,"")))) ->  | O50: =IF(AND($N$23="ANUAL",$J$23="MENSUAL"),$N$17/12+N50,IF(AND(N23="SEMESTRAL",J23="MENSUAL"),N17/6+N50,IF(AND(N23="TRIMESTRAL",J23="MENSUAL"),N17/3+N50,IF(AND(N23="MENSUAL",J23="MENSUAL"),N17,"")))) -> 
C52: NIVEL DE SEGREGACIÓN *
C53: UNIDAD SEGREGADA (Ej. Facultad, Programa Académico, Área) | G53: RESULTADO | K53: ANALISIS DE DATOS SEGREGADO
G72: Estratégico | J72: Eficacia
G73: Misional | J73: Eficiencia
G74: Apoyo | J74: Acreditación
G75: Seguimiento, Medición, Análisis y Evaluación | J75: Positiva
G76: Direccionamiento Estratégico | J76: Negativa
G77: Planeación Institucional | J77: Por Unidad Regional
G78: Proyectos Especiales y Relaciones Interinstitucionales | J78: Por Facultad
G79: Sistemas Integrados | J79: Por Programa Académico
G80: Autoevaluación y Acreditación | J80: Por área
G81: Comunicaciones | J81: Por Laboratorio
G82: Formación y Aprendizaje | J82: Otros
G83: Ciencia, Tecnología e Innovación | J83: No Aplica
G84: Interacción Social Universitaria
G85: Bienestar Universitario
G86: Admisiones y Registro
G87: Graduados
G88: Dialogando con el Mundo
G89: Talento Humano
G90: Jurídica
G91: Financiera
G92: Sistemas y Tecnología
G93: Bienes y Servicios
G94: Documental
G95: Apoyo Académico
G96: Control Interno
G97: Control Disciplinario
G98: Servicio de Atención al Ciudadano

Sheet Hoja1 (hidden)

Sheet ITEM (hidden)
A1: MENSUAL | C1: NÚMERO
A2: TRIMESTRAL | C2: PORCENTAJE
A3: SEMESTRAL
A4: ANUAL
